Cogmind - Beta 13 @@@ ROGUE MODE // 2024.04.20 @ 19:39:28 // AFD2019/Pay2Buy Player: june Result: Destroyed self with Rocket Launcher Performance ------------- Evolutions (0) 0 Regions Visited (1) 200 Robots Destroyed (8) 40 Value Destroyed (135) 135 Prototype IDs (1) 20 Alien Tech Used (0) 0 Bonus (0) 0 TOTAL SCORE: 395 Bonus ------- None Cogmind --------- Core Integrity 0/250 Matter 158/350 Energy 31/100 System Corruption 0% Temperature Cool (0) Movement Flying (115) Ox1 Location -10/Materials Parts ------- > --- POWER (1) -------- (None) > --- PROPULSION (2) --- Cesium-ion Thruster > --- UTILITY (2) ------ Small Matter Pod Advanced ECM Suite > --- WEAPON (2) ------- Rocket Launcher Flail > --- INVENTORY (10) --- Improved Terrain Scan Processor Heavy EM Shotgun Axe Peak State ------------ > --- POWER ------------ (None) > --- PROPULSION ------- Cesium-ion Thruster > --- UTILITY ---------- Small Matter Pod Advanced ECM Suite > --- WEAPON ----------- Rocket Launcher Flail > --- INVENTORY -------- Improved Terrain Scan Processor Heavy EM Shotgun Axe [Rating: 13] Favorites ----------- Power None Propulsion Compact Wheel Wheel Compact Wheel Hover Unit Hover Unit Flight Unit Cesium-ion Thruster Utility Small Matter Pod Device Advanced ECM Suite Storage Small Matter Pod Weapon Flail Energy Gun Heavy EM Shotgun Launcher Rocket Launcher Impact Weapon Flail Slashing Weapon Axe Build | -11 -10 ------- Run | Yrd Mat Slots Evolved . | . . Power . | . . Propulsion . | . . Utility . | . . Weapon . | . . Parts Attached 7 | 3 4 Power . | . . Engine . | . . Core . | . . Reactor . | . . Propulsion 4 | 2 2 Treads . | . . Leg . | . . Wheel 2 | 2 . Hover 1 | . 1 Flight 1 | . 1 Utility . | . . Device . | . . Storage . | . . Processor . | . . Hackware . | . . Protection . | . . Artifact . | . . Weapon 3 | 1 2 Energy Gun 1 | . 1 Energy Cannon . | . . Ballistic Gun . | . . Ballistic Cannon . | . . Launcher 1 | . 1 Special Weapon . | . . Impact Weapon 1 | 1 . Slashing Weapon . | . . Piercing Weapon . | . . Special Melee Weapon . | . . Unidentified Prototypes . | . . Parts Lost 4 | . 4 Power . | . . Propulsion 3 | . 3 Utility 1 | . 1 Weapon . | . . Highest Loss Streak 2 | . 2 To Critical Strikes . | . . Average Slot Usage (%) 70 | . 70 Wheel 14 | . 14 Hover 1 | . 1 Storage 24 | . 24 Impact Weapon 14 | . 14 Slashing Weapon 12 | . 12 Naked Turns . | . . Heaviest Build 10 | 10 10 Greatest Support 26 | 26 26 Greatest Overweight (x) 3 | . 3 Average Overweight (x) . | . . Largest Inventory Capacity 10 | 10 10 Average Capacity 10 | 10 10 Most Carried 5 | 4 5 Average Carried 4 | 3 4 Final Capacity 10 | 10 10 Final Carried 4 | 4 3 Class Distribution -------------------- 100% | Mutant Dominant Class ---------------- Mutant | -10/Materials Resources | -11 -10 ----------- Run | Yrd Mat Matter Collected 130 | 13 117 Remotely . | . . Salvage Created 181 | 13 168 Parts . | . . Haulers Intercepted . | . . Recyclers Shooed . | . . Parts Field Recycled . | . . Retrieved Matter . | . . Parts Self-Destructed . | . . Prevented . | . . Kills | -11 -10 ------- Run | Yrd Mat Combat Hostiles Destroyed 5 | . 5 Melee 3 | . 3 AOE 1 | . 1 Classes Destroyed 5 | 1 4 Worker 1 | . 1 Tunneler 1 | 1 . Watcher 1 | . 1 Swarmer 3 | . 3 Grunt 2 | . 2 Best Kill Streak 4 | 1 4 Combat Bots Only 2 | . 2 Max Kills in Single Turn 2 | 1 2 Gunslinging . | . . Exploded 1 | . 1 Melee 1 | . 1 Uniques/NPCs Destroyed . | . . Combat | -11 -10 -------- Run | Yrd Mat Hostile Shots Fired 69 | . 69 Missed 15 | . 15 Damage Taken 575 | . 575 Core 256 | . 256 Absorbed by Shields . | . . Core Remaining (%) 100 | 100 . Volleys Fired 5 | . 5 Largest 1 | . 1 Hottest 50 | . 50 Shots Fired 5 | . 5 Gun 3 | . 3 Cannon . | . . Launcher 2 | . 2 Special . | . . Kinetic . | . . Thermal . | . . Explosive 2 | . 2 Electromagnetic 3 | . 3 Robot Hit Streak 2 | . 2 Robot Miss Streak 3 | . 3 Penetration Max . | . . Secondary Targets . | . . Shots Hit Robots 14 | 2 12 Core Hits 7 | 1 6 Critical Kills 1 | . 1 Critical Parts Destroyed 3 | . 3 Critical Strikes 4 | . 4 Smash 4 | . 4 Melee Attacks 27 | 3 24 Impact 26 | 2 24 Slashing 1 | 1 . Piercing . | . . Sneak Attacks 2 | 1 1 Combat Hostiles . | . . Follow-up Attacks 1 | 1 . Damage Inflicted 799 | 113 686 Guns 99 | . 99 Cannons . | . . Explosions 180 | . 180 Melee 520 | 113 407 Ramming . | . . Kinetic . | . . Thermal 83 | . 83 Explosive 97 | . 97 Electromagnetic 99 | . 99 Impact 480 | 73 407 Slashing 40 | 40 . Piercing . | . . Highest Corruption . | . . Average Corruption . | . . Corruption Purged . | . . Corruption Blocked . | . . Overload Shots . | . . Overflow Damage 162 | 33 129 Projectiles . | . . Explosions 22 | . 22 Melee 140 | 33 107 Knockbacks 4 | 1 3 Impact 4 | 1 3 Kinetic . | . . Secondary . | . . Self-Inflicted Damage 84 | . 84 Shots 2 | . 2 Rammed . | . . Targets Rammed . | . . Kicked . | . . Crushed . | . . Highest Temperature 16 | . 16 Average Temperature 7 | . 7 Received Heat Transfer 84 | . 84 Siege Activations . | . . Robots Corrupted . | . . Combat Hostiles . | . . Parts Fried . | . . Impact Corruptions 6 | 1 5 Robots Melted . | . . Combat Hostiles . | . . Parts Melted . | . . Heat Transferred 150 | . 150 Parts Sabotaged . | . . Parts Stolen . | . . Parts Stripped . | . . Power Chain Reactions 1 | . 1 Alert | -11 -10 ------- Run | Yrd Mat Peak Influence 119 | 5 119 Initial 3 | . 3 Average 39 | . 44 Maximum Alert Level . | . . Low Security (%) 100 | 100 100 Level 1 . | . . Level 2 . | . . Level 3 . | . . Level 4 . | . . Level 5 . | . . High Security . | . . Max Security . | . . Squads Dispatched . | . . Investigation . | . . Extermination . | . . Reinforcement . | . . Assault . | . . Garrison . | . . Intercept . | . . Searches Triggered . | . . Construction Impeded . | . . Haulers Reinforced . | . . Active Scanning Responses . | . . Cargo Convoy Interrupts . | . . Stealth | -11 -10 --------- Run | Yrd Mat Distress Signals . | . . Communications Jammed . | . . Distress Signals . | . . Times Spotted 9 | . 9 Peak Tracking Total 4 | . 4 Tactical Retreats . | . . Traps | -11 -10 ------- Run | Yrd Mat Traps Triggered . | . . Indirectly . | . . Trap Hack Attempts . | . . Triggered . | . . Disarmed 1 | . 1 Reprogrammed . | . . Reused . | . . Traps Extracted . | . . Installed . | . . Triggered . | . . Machines | -11 -10 ---------- Run | Yrd Mat Machines Disabled . | . . Max in Single Turn . | . . Machines Repaired . | . . Machines Dismantled . | . . Machines Sabotaged . | . . Overloaded Fab Kills . | . . Hacking | -11 -10 --------- Run | Yrd Mat Machines Accessed 1 | . 1 Terminals 1 | . 1 Fabricators . | . . Repair Stations . | . . Recycling Units . | . . Scanalyzers . | . . Garrison Access . | . . Total Hacks 2 | . 2 Successful 1 | . 1 Failed 1 | . 1 Catastrophic . | . . Database Lockouts . | . . Manual . | . . Terminals 2 | . 2 Fabricators . | . . Repair Stations . | . . Recycling Units . | . . Scanalyzers . | . . Garrison Access . | . . Terminal Hacks 1 | . 1 Disarm Traps 1 | . 1 Fabricator Hacks . | . . Repair Station Hacks . | . . Recycling Unit Hacks . | . . Scanalyzer . | . . Garrison Access Hacks . | . . Unauthorized Hacks . | . . Terminals . | . . Fabricators . | . . Repair Stations . | . . Recycling Units . | . . Scanalyzers . | . . Garrison Access . | . . Data Cores Recovered . | . . Used . | . . Hacking Detections 1 | . 1 Full Trace Events . | . . Feedback Events . | . . Feedback Blocked . | . . Robot Schematics Acquired . | . . Robots Built . | . . Authchips . | . . Time . | . . Total Robot Build Rating . | . . Part Schematics Acquired . | . . Parts Built . | . . Authchips . | . . Time . | . . Total Part Build Rating . | . . Parts Repaired . | . . Time . | . . Parts Recycled . | . . Recycled Matter . | . . Retrieved Matter . | . . Retrieved Components . | . . Parts Scanalyzed . | . . Part Schematics Acquired . | . . Parts Damaged . | . . Bothacking | -11 -10 ------------ Run | Yrd Mat Used RIF Installer . | . . Robots Hacked . | . . Non-combat . | . . Combat . | . . Robot Hacks Applied . | . . Relay Couplers Released . | . . Fabnet Peak Effective % . | . . Robots Rewired . | . . Allies Hacked . | . . Hacks Repelled . | . . Allies | -11 -10 -------- Run | Yrd Mat Total Allies . | . . Largest Group . | . . Highest-Rated Group . | . . Highest-Rated Ally . | . . Total Orders . | . . Ally Attacks . | . . Total Damage . | . . Kills . | . . Allies Corrupted . | . . Allies Melted . | . . Intel | -11 -10 ------- Run | Yrd Mat Robot Analysis Total . | . . Derelict Logs Recovered . | . . Drone Launches . | . . Drone Recoveries . | . . Exploration | -11 -10 ------------- Run | Yrd Mat Turns Passed 242 | 27 215 Spaces Moved 161 | 21 140 Core 10 | . 10 Treads . | . . Legs . | . . Wheels 145 | 21 124 Hover 3 | . 3 Flight 3 | . 3 Fastest Speed 60 | 80 60 Average Speed 98 | 82 100 Slowest Speed 200 | 90 200 Overloaded Moves . | . . Propulsion Burnouts . | . . Robots Hopped . | . . Cave-ins Triggered . | . . Exploration Rate (%) 16 | 3 30 Regions Visited 1 Branch Regions . Pre-discovered Areas . | . . Known Exits Taken . | . . Unknown Exits Taken 1 | 1 . Scrap Searched . | . . Spaces Dug . | . . Terrain Destroyed 12 | . 12 Melee . | . . Projectile . | . . AOE 12 | . 12 Terrain Rammed . | . . Walls Destroyed . | . . Machines Disabled . | . . Actions | -11 -10 --------- Run | Yrd Mat Total 198 | 25 173 Wait . | . . Move 160 | 20 140 Hop . | . . Pick Up . | . . Fast Attach . | . . Attach 2 | . 2 Detach . | . . Swap 5 | 3 2 Drop . | . . Fire 5 | . 5 Melee 26 | 2 24 Ram . | . . Kick . | . . Crush . | . . Escape Stasis . | . . Rewire . | . . Trap . | . . Miscellaneous . | . . Route ------- -11/Scrapyard -10/Materials (discovered 1 exit: [*Min]) History --------- Turn | Location | Event 9 | -11/Scrapyard | Discovered new exit (range 13) 28 | -11/Scrapyard | Entered Materials 173 | -10/Materials | Discovered new exit (range 12) 201 | -10/Materials | Core integrity fell below 50% 227 | -10/Materials | Core integrity fell below 20% 243 | -10/Materials | Destroyed self with Rocket Launcher Last Messages --------------- S-10 Pest destroyed. Acquired 16 matter. K-01 Serf collects debris. Chain reaction triggered in Lgt. Ion Engine. S-10 Pest destroyed. Destroyed Hover Unit. Hover Unit destroyed. Destroyed Hover Unit. K-01 Serf collects debris. W-16 Scout destroyed. K-01 Serf destroyed. U-05 Engineer lays Concrete. K-01 Serf collects debris. [You open your loot box...] [Congratulations on your very own Adv. ECM Suite!] U-05 Engineer lays Concrete. U-05 Engineer builds a Wall. U-05 Engineer lays Concrete. K-01 Serf collects debris. Map ----- +----------------------------------------------------+ | ???????????????????????????????????????? | | ???????????????????????????????????????? | | ???????????????????????????????????????? | | ???????????????????????????????????????? | | ???????????????????????????????????????? | | ???????????????????????????????????????? | | ???????????????????????????????????????? | | ?????????????????????????"""#??????????? | | ????????????????????????" "#?????????? | | ???????????????????????"" ""#????????? | | ??????????????????????? #????????? | | ??????????????????????? < #????????? | | ????????????? ?????????? #????????? | | ?????????????? ????????? ?????????? | | ?????????????? ??????? #?????????? | | ??????????????# ???????# #??????????? | | ?????????????## ######## #??????????? | | ????????????## ^ ##########?? | | ????????????# % # #?? | | ????????????# %"""" # """ #?? | | ????????????# """"^ # """ #?? | | ?????????##### k"""" # """ #?? | | ?????????# + #?? | | ?????????# # """ #?? | | ??????? / u% wt# """ #?? | | ?????????# ##; @ ## """ #?? | | ?????????# ### ## #?? | | ?????????# ???# ##+########?? | | ?????????# ????# ########?? | | ?????????# ?????# # #?? | | ?????????######?????# # #?? | | ????????????????????# """ # """#?? | | ????????????????????# """ # """#?? | | ????????????????????# """ + """#?? | | ????????????????????# # #?? | | ????????????????????# ####+###?? | | ????????????????????# #???? | | ????????????????????# #######???? | | ????????????????????# ########??? | | ????????????????????###### # #??? | | ?????????????????????????# # #??? | | ?????????????????????????# # #??? | | ?????????????????????????# # #??? | | ?????????????????????????# + #??? | | ????????????????########## # #??? | | ??????????????? ##+#####??? | | ??????????????? ^^ #????? | | ??????????????? #????? | | ?????????????????#########^^T #????? | | ?????????????????????????# ^ #????? | +----------------------------------------------------+ Best States ------------- Heat Dissipation 25 Energy Generation 5 Energy Capacity 350 Matter Stores 205 Matter Capacity 350 Sight Range 16 Terrain Scan Density 10 Evasion (%) 45 Item Schematics ----------------- None Robot Schematics ------------------ None Fabricated ------------ Nothing Alien Tech Used ----------------- None Achievements -------------- None Challenges ------------ None Cogshop Purchases (12) ------------------------ Cesium-ion Thruster (Loot Box) Rocket Launcher (Loot Box) Hover Unit (Loot Box) Hcp. Battery (Loot Box) Wheel (Loot Box) Axe (Loot Box) Hvy. EM Shotgun (Loot Box) Sml. Matter Pod (Loot Box) Flail (Loot Box) Com. Wheel (Loot Box) Imp. Terrain Scan Processor (Loot Box) Adv. ECM Suite (Loot Box) Game ------ Seed SkeletonBlastMace Manual? 0 Play Time 00:06:15 Cumulative 7.1 hours Start 2024.04.20 @ 19:33:34 End 2024.04.20 @ 19:39:28 Sessions 1 Manual Loads 0 Difficulty Rogue Special Mode AFD2019/Pay2Buy Game No. 11 Rogue 11 Adventurer 0 Explorer 0 Win Type - Total 0 Types 0/0/0/0/0/0/0/0/0 Lore% 11 Gallery% 13 Achievement% 11 Wizard Run 0 Options --------- Layout 1 ASCII 0 Keyboard 0 Movement Mouse Keybinds 0 Fullscreen 1 Font 24/Smallcaps Map View 50x35 Zoom Use 0% Tactical HUD 0 Map Filters NONE Filters NONE Steam 1 RUN: 177b8ea2-429f-4e64-92fc-d20e2c2d3ff0